bitfinex/quotes_ETHUSD_20220119
["timestamp","ask_amount","ask_price","bid_price","bid_amount"]
[1642626021629,0.385,3125.3,3124.5,0.00625266]
[1642626021933,0.385,3125.3,3124.0,0.01299641]
[1642626021934,0.385,3125.3,3124.3,0.25]
[1642626022331,2.1338029,3124.8,3124.4,0.00682108]
[1642626022529,1.35358487,3125.2,3124.9,3.67823561]
[1642626022729,1.35358487,3125.2,3124.9,3.97823561]
[1642626022929,1.35358487,3125.2,3125.0,0.00341054]
[1642626023328,1.73858487,3125.2,3125.0,0.00341054]
[1642626023544,2.3027799,3125.1,3125.0,0.00341054]
[1642626024376,3.68714823,3125.1,3125.0,0.00341054]
[1642626024976,3.69638569,3125.1,3125.0,0.00341054]
[1642626025177,11.19638569,3125.1,3125.0,0.00341054]
[1642626025377,11.14638569,3125.1,3125.0,0.00341054]
[1642626025976,11.14638569,3125.1,3125.0,3.20341054]
[1642626026382,9.7527799,3125.1,3125.0,3.20341054]
[1642626026580,12.67918092,3125.1,3125.0,3.20341054]
[1642626026782,13.06418092,3125.1,3125.0,1.19629163]
[1642626026980,13.06418092,3125.1,3124.9,1.19629163]
[1642626027202,3.54546841,3125.0,3124.9,1.19629163]
[1642626027383,6.18273109,3125.0,3124.9,1.19629163]
[1642626027647,5.12902748,3125.0,3124.9,1.19629163]
[1642626027836,5.6,3124.9,3124.3,0.25]
[1642626028041,3.38188332,3124.8,3124.1,0.0008061]
[1642626028237,0.28796,3124.7,3124.4,0.00341054]
[1642626028440,0.385,3124.6,3124.4,0.00341054]
[1642626028641,1.64233019,3124.5,3124.4,0.00341054]
[1642626028937,3.85977673,3124.5,3124.4,0.00341054]
[1642626029340,2.50540654,3124.5,3124.1,0.0008061]
[1642626029540,2.21744654,3124.5,3124.1,0.0008061]
[1642626029742,2.21744654,3124.5,3123.9,0.24270549]
[1642626029941,0.00113685,3124.4,3123.9,0.24270549]
[1642626030141,0.385,3124.3,3124.0,0.00113684]
[1642626030343,1.26056942,3124.2,3124.0,0.00113684]
[1642626030542,0.385,3124.1,3124.0,0.00113684]
[1642626031142,0.385,3124.1,3123.4,0.00454738]
[1642626031384,1.14261344,3123.7,3123.4,0.00454738]
[1642626031592,3.48995264,3123.6,3123.4,0.00454738]
[1642626031787,3.20343427,3123.5,3123.4,0.00454738]
[1642626031990,3.20343427,3123.5,3123.3,0.00511581]
[1642626031991,3.71643427,3123.5,3123.3,0.00511581]
[1642626032186,3.12158292,3123.4,3123.3,0.00511581]
[1642626032389,5.74722157,3123.4,3123.0,0.25]
[1642626032587,6.72785695,3123.2,3123.1,0.00625266]
[1642626032785,5.12682215,3123.2,3123.1,0.00625266]
[1642626032986,0.385,3123.2,3123.1,0.00625266]
[1642626033188,2.11263865,3123.4,3123.2,5.42871667]
[1642626033592,2.11263865,3123.4,3123.3,0.00511581]
[1642626034086,3.5268809,3123.4,3123.3,0.00511581]
[1642626034689,0.54496,3123.6,3123.4,0.83397537]
[1642626034893,6.25662509,3123.5,3123.4,0.83397537]
[1642626035131,6.64162509,3123.5,3123.4,0.83397537]
[1642626035536,3.90254342,3123.5,3123.4,0.83397537]
[1642626035736,2.52391833,3123.5,3123.4,0.83397537]
[1642626036737,3.94592964,3123.5,3123.4,0.83397537]
[1642626036937,2.52391833,3123.5,3123.4,0.83397537]
[1642626037238,0.513,3123.5,3123.4,1.13397537]
[1642626037440,0.15996,3124.3,3123.4,1.13397537]
[1642626037441,0.54496,3124.3,3123.4,1.13397537]
[1642626037639,0.54496,3124.3,3123.4,1.95027537]
[1642626037844,0.385,3124.3,3123.5,0.00397896]
[1642626038241,1.87389442,3124.1,3123.5,0.00397896]
[1642626039078,0.385,3124.3,3123.5,0.00397896]
[1642626039279,0.33613685,3124.9,3123.7,0.01226556]
[1642626039479,0.28796,3125.0,3123.9,0.09481257]
[1642626039677,0.28796,3125.0,3123.8,0.6043]
[1642626039678,0.00284212,3124.9,3123.8,0.60771054]
[1642626039880,0.00284212,3124.9,3124.0,0.00227369]
[1642626040083,0.00284212,3124.9,3123.8,3.58022036]
[1642626040084,0.00227369,3124.8,3124.3,0.03393211]
[1642626040282,0.00227369,3124.8,3124.5,0.01262996]
[1642626040484,0.00170527,3124.7,3124.5,0.01262996]
[1642626040681,1.1959,3125.1,3124.6,5.63909164]
[1642626040979,0.00170527,3125.0,3124.7,0.02900988]
[1642626041183,0.00170527,3125.0,3124.6,0.6]
[1642626041383,0.00170527,3125.0,3123.9,0.00284212]
[1642626041384,2.17223534,3124.9,3123.9,0.00284212]
[1642626041681,2.17223534,3124.9,3124.3,0.00227369]
[1642626041979,1.25064122,3124.5,3124.3,0.00227369]
[1642626042179,2.17223534,3124.9,3124.3,0.03059148]
[1642626042180,1.23039082,3124.7,3124.3,0.03059148]
[1642626042640,1.23039082,3124.7,3124.4,0.03002203]
[1642626043029,1.23039082,3124.7,3124.6,0.02831573]
[1642626043530,4.26545108,3124.7,3124.6,0.02831573]
[1642626043730,4.42541108,3124.7,3124.6,1.573e-05]
[1642626043931,4.65045108,3124.7,3124.6,1.573e-05]
[1642626044132,4.65045108,3124.7,3124.5,0.00113685]
[1642626044332,27.42506596,3124.6,3124.5,0.00113685]
[1642626044531,22.81006596,3124.6,3124.4,0.00170527]
[1642626044734,3.09053837,3124.5,3124.4,0.00170527]
[1642626045033,22.27553837,3124.5,3124.4,0.00170527]
[1642626045432,22.43549837,3124.5,3124.4,0.00170527]
[1642626045631,22.56349837,3124.5,3124.4,0.00170527]
[1642626046036,3.76349837,3124.5,3124.4,0.00170527]
[1642626046232,0.513,3124.5,3124.4,0.00170527]
[1642626046677,0.385,3124.5,3124.4,0.00170527]
[1642626046881,2.16516055,3124.9,3124.4,0.00170527]
[1642626046882,2.16516055,3124.9,3124.5,0.03908435]
[1642626047076,2.16516055,3124.9,3124.6,0.0228257]
[1642626047277,2.16516055,3124.9,3124.6,0.3]
[1642626047480,2.16516055,3124.9,3124.6,2.61333648]
[1642626047678,0.54496,3125.9,3124.6,2.61333648]
[1642626047679,0.128,3126.4,3124.9,0.05234766]
[1642626047883,0.128,3126.4,3124.8,0.01286935]
[1642626047884,2.9735531,3126.5,3125.7,0.02750116]
[1642626048080,2.9735531,3126.5,3125.7,0.8763]
[1642626048278,2.9735531,3126.5,3125.7,3.48872543]
[1642626048279,0.1279,3126.4,3125.7,3.48872543]
[1642626048676,0.15996,3126.6,3125.7,3.48872543]
[1642626048677,1.35504803,3126.2,3125.7,3.48872543]
[1642626048889,1.35504803,3126.2,3125.4,0.25]
[1642626048890,5.6,3126.1,3125.4,0.25]
[1642626049086,5.6,3126.1,3124.7,0.26723682]
[1642626049087,0.28786,3126.0,3124.7,0.26723682]
[1642626049277,0.28786,3126.0,3124.7,0.00113685]
[1642626049278,1.31169088,3124.9,3124.7,0.00113685]
[1642626049477,0.128,3125.8,3124.7,0.00113685]
[1642626049677,0.128,3125.8,3124.7,0.62885549]
[1642626049678,2.31314441,3125.4,3124.7,0.62885549]
[1642626050127,0.00227369,3125.3,3124.7,0.62885549]
[1642626050536,0.00170527,3125.2,3124.8,0.10780848]
[1642626050832,0.00113684,3125.1,3124.8,0.10780848]
[1642626051233,1.20469921,3125.3,3124.8,0.10780848]
[1642626051632,0.00170527,3125.2,3124.8,0.10780848]
[1642626052032,0.00113684,3125.1,3124.8,0.10780848]
[1642626052435,0.00170527,3125.2,3124.8,0.10780848]
[1642626052833,0.00113684,3125.1,3124.8,0.10780848]
[1642626053238,1.20242552,3125.3,3124.8,0.10780848]
[1642626053239,0.00170527,3125.2,3124.8,0.10780848]
[1642626053635,0.00113684,3125.1,3124.8,0.10780848]
[1642626053873,0.128,3125.0,3124.8,0.10780848]
[1642626054077,1.20242552,3125.3,3124.8,0.10780848]
[1642626054078,0.12970527,3125.2,3124.8,0.10780848]
[1642626054279,0.00170527,3125.2,3124.9,0.00744331]
[1642626054479,5.28547312,3127.0,3124.9,0.11524787]
[1642626054480,0.00113684,3125.1,3124.9,0.11524787]
[1642626054679,0.385,3125.9,3125.2,0.01427908]
[1642626054878,0.385,3125.9,3125.2,0.1220719]
[1642626054879,0.1279,3125.8,3125.2,0.1220719]
[1642626055079,0.00397897,3125.8,3125.2,0.10779282]
[1642626055479,1.71193995,3125.4,3125.2,0.10779282]
[1642626055681,0.00397897,3125.8,3125.3,2.72383354]
[1642626055886,0.1279,3126.2,3125.4,0.1077889]
[1642626056082,0.1279,3126.6,3125.5,2.72383354]
[1642626056280,0.00511582,3126.0,3125.5,4.58747304]
[1642626056479,0.00511582,3126.0,3125.6,2.83161461]
[1642626056679,0.1279,3126.6,3125.7,3.3513607]
[1642626056680,2.07035937,3125.9,3125.7,3.3513607]
[1642626056883,0.00454739,3125.9,3125.8,2.72383354]
[1642626057081,0.385,3126.7,3126.0,0.62747248]
[1642626057280,0.385,3126.7,3126.1,2.72329424]
[1642626057480,0.385,3126.7,3126.2,0.10321455]
[1642626057943,1.14672894,3126.5,3126.1,0.62744514]
[1642626058342,0.00284212,3126.4,3126.1,0.62744514]
[1642626058548,2.34544479,3126.3,3126.1,0.62744514]
[1642626058746,2.34771849,3126.3,3126.1,0.62744514]
[1642626058945,2.29715006,3126.3,3126.1,0.62744514]
[1642626059745,18.8,3127.8,3126.2,2.72314218]
[1642626059746,0.385,3127.1,3126.2,2.72314218]
[1642626059948,0.385,3127.1,3126.2,4.58885119]
[1642626060145,0.00284212,3126.7,3126.2,1.86570901]
[1642626060350,0.00284212,3126.7,3126.3,2.72302499]
[1642626060548,0.0022737,3126.6,3126.4,1.06536259]
[1642626060745,1.89833952,3126.5,3126.4,1.06536259]
[1642626060946,1.90004479,3126.5,3126.4,1.06536259]
[1642626061587,19.76262857,3126.5,3125.9,0.25]
[1642626061786,0.1279,3126.4,3125.9,0.25]
[1642626062083,0.12903685,3126.4,3126.0,0.00113685]
[1642626062485,0.12903685,3126.4,3125.5,0.00397896]
[1642626062689,0.00113685,3126.4,3125.5,0.00397896]
[1642626063086,1.26567868,3126.0,3125.5,0.00397896]
[1642626063486,1.26567868,3126.0,3125.3,0.00511581]
[1642626063691,1.82842355,3125.4,3125.3,0.00511581]
[1642626065933,3.35381295,3125.4,3125.3,0.00511581]
[1642626066338,3.73881295,3125.4,3125.3,0.00511581]
[1642626066533,3.73881295,3125.4,3125.3,3.20511581]
[1642626066732,2.21342355,3125.4,3125.3,3.20511581]
[1642626066933,0.385,3125.4,3125.3,3.20511581]
[1642626067134,0.385,3126.2,3125.3,3.20511581]
[1642626067333,0.385,3126.2,3125.3,3.2414013]
[1642626067539,0.385,3126.2,3125.4,0.00454739]
[1642626068235,2.14307621,3125.8,3125.4,0.80447239]
[1642626068637,2.14307621,3125.8,3125.3,3.23701563]
[1642626068638,2.14307621,3125.8,3125.5,0.00397896]
[1642626069077,2.14307621,3125.8,3125.4,0.00454739]
[1642626069278,0.1279,3126.3,3125.7,0.01233364]
[1642626069478,0.00113685,3126.4,3125.7,0.01233364]
[1642626069677,0.00113685,3126.4,3125.8,0.02901134]
[1642626069877,0.00113685,3126.4,3125.8,0.00227369]
[1642626070077,0.00113685,3126.4,3125.9,0.00170527]
[1642626070283,0.00113685,3126.4,3125.8,0.00227369]
[1642626070484,0.00113685,3126.4,3125.8,0.80205919]
[1642626070485,1.68064256,3126.3,3125.8,0.80205919]
[1642626070885,1.68064256,3126.3,3125.9,0.00170527]
[1642626071492,1.64840409,3126.2,3125.9,0.00170527]
[1642626071687,1.64840409,3126.2,3125.4,0.00454739]
[1642626071989,0.385,3126.1,3125.4,0.00454739]
[1642626072186,1.19249513,3125.5,3125.4,0.00454739]
[1642626072386,0.1279,3125.5,3125.4,0.00454739]
[1642626072833,1.91223548,3125.5,3125.4,0.00454739]
[1642626073534,1.86223548,3125.5,3125.4,0.00454739]
[1642626075940,4.79013548,3125.5,3125.4,0.00454739]
[1642626076138,1.99013548,3125.5,3125.4,0.00454739]
[1642626076411,2.37513548,3125.5,3125.4,0.00454739]
[1642626076817,5.32513548,3125.5,3125.4,0.00454739]
[1642626077014,3.4,3125.3,3125.1,0.25227368]
[1642626077217,3.4,3125.3,3123.9,0.03]
[1642626077218,24.4,3125.2,3123.9,0.03]
[1642626077420,24.4,3125.2,3123.9,0.28]
[1642626077421,0.80052,3124.9,3123.9,0.28]
[1642626077618,18.928,3124.8,3123.9,0.28]
[1642626077818,3.93146271,3124.8,3123.9,0.28]
[1642626078015,1.72841597,3124.7,3123.9,0.28]
[1642626078214,3.93146271,3124.8,3123.9,0.28]
[1642626078215,2.18493795,3124.0,3123.9,0.28]
[1642626078618,2.18493795,3124.0,3123.9,0.28852635]
[1642626079422,3.93226547,3124.8,3124.0,0.00751756]
[1642626079423,4.65701804,3124.8,3124.0,0.00751756]
[1642626079619,0.128,3124.8,3123.9,0.28852635]
[1642626079818,0.128,3124.8,3124.2,0.04958606]
[1642626080017,0.128,3125.2,3124.0,0.00795792]
[1642626080233,1.32803791,3125.2,3124.3,0.00625265]
[1642626080435,1.32803791,3125.2,3124.0,0.00795792]
[1642626080436,1.83276355,3124.5,3124.0,0.00795792]
[1642626081435,1.83276355,3124.5,3124.1,2.72430159]
[1642626081637,1.83276355,3124.5,3124.0,0.80820642]
[1642626081837,1.83276355,3124.5,3124.2,0.00682108]
[1642626082042,1.83276355,3124.5,3124.1,0.0073895]
[1642626082439,1.83276355,3124.5,3124.0,0.00795792]
[1642626083242,1.27551567,3124.1,3124.0,0.00795792]
[1642626083643,1.66051567,3124.1,3124.0,0.00795792]
[1642626084705,0.385,3124.1,3124.0,0.00795792]
[1642626084904,1.18554,3124.1,3124.0,0.00795792]
[1642626086202,2.54457125,3124.1,3124.0,0.00795792]
[1642626086605,5.59226864,3124.1,3124.0,0.00795792]
[1642626086807,2.15957125,3124.1,3124.0,0.00795792]
[1642626087208,2.15957125,3124.1,3124.0,3.20795792]
[1642626088739,20.95957125,3124.1,3124.0,3.20795792]
[1642626088941,2.28757125,3124.1,3124.0,3.20795792]
[1642626089141,2.28757125,3124.1,3123.9,0.03]
[1642626089142,3.88906125,3124.1,3123.9,0.03]
[1642626089339,0.128,3124.0,3123.9,0.03]
[1642626089841,0.513,3124.0,3123.9,0.03]
[1642626091886,19.313,3124.0,3123.9,0.03]
[1642626092089,1.63364546,3123.9,3123.4,0.83397537]
[1642626092293,0.513,3123.8,3123.4,0.83397537]
[1642626092489,25.20082,3123.6,3123.5,0.00284212]
[1642626092689,22.34884261,3123.6,3123.5,0.00284212]
[1642626092891,3.54884261,3123.6,3123.5,0.00284212]
[1642626094590,22.34884261,3123.6,3123.5,0.00284212]
[1642626095339,3.54884261,3123.6,3123.5,0.00284212]
[1642626095944,22.34884261,3123.6,3123.5,0.00284212]
[1642626096141,1.17084625,3123.5,3123.4,0.83397537]
[1642626096344,2.77250625,3123.5,3123.4,0.83397537]
[1642626096941,1.55584625,3123.5,3123.4,0.83397537]
[1642626097744,1.55584625,3123.5,3123.4,4.03397537]
[1642626100188,5.6317,3123.4,3122.3,0.25]
[1642626100494,5.6317,3123.4,3122.7,0.00454739]
[1642626100495,18.8,3123.2,3122.7,0.00454739]
[1642626100686,0.513,3123.1,3122.7,0.00454739]
[1642626100987,4.75,3122.7,3122.3,0.25]
[1642626101187,1.86084563,3122.8,3121.7,0.01]
[1642626101188,1.15377942,3121.9,3121.7,0.01]
[1642626101388,2.25398997,3121.9,3121.8,2.72619699]
[1642626101586,2.78802,3122.6,3121.8,2.72619699]
[1642626101587,0.80101,3122.5,3121.8,2.72619699]
[1642626101788,0.385,3122.5,3121.8,2.7388394]
[1642626101990,0.385,3122.5,3121.9,2.73074438]
[1642626102186,0.385,3122.5,3122.0,2.72619699]
[1642626102386,0.385,3122.5,3122.0,2.73017595]
[1642626102647,0.385,3122.5,3122.1,0.00341054]
[1642626102648,2.04888175,3122.3,3122.1,0.00341054]
[1642626103244,2.04888175,3122.3,3122.0,0.00397896]
[1642626104248,2.43388175,3122.3,3122.0,0.00397896]
[1642626104447,0.80104,3122.2,3122.0,0.00397896]
[1642626104648,1.60208,3122.2,3122.0,0.00397896]
[1642626105046,1.58968,3122.2,3122.0,0.00397896]
[1642626107088,2.43388175,3122.3,3122.0,0.00397896]
[1642626107287,2.43388175,3122.3,3121.7,0.01]
[1642626107288,2.43388175,3122.3,3121.8,0.00511581]
[1642626108788,1.41969035,3121.9,3121.8,0.00511581]
[1642626111637,4.44462522,3121.9,3121.8,0.00511581]
[1642626112038,1.41969035,3121.9,3121.8,0.00511581]
[1642626112436,0.80106,3122.0,3121.8,0.00511581]
[1642626112639,2.43388175,3122.3,3122.0,0.09481257]
[1642626112640,2.04888175,3122.3,3122.0,0.09481257]
[1642626112838,2.4587,3122.9,3122.0,0.09481257]
[1642626113138,2.4587,3122.9,3121.9,0.01221319]
[1642626113139,2.4587,3122.9,3122.2,0.0137164]
[1642626113536,2.4587,3122.9,3122.3,0.00227369]
[1642626113987,1.74606606,3122.5,3122.3,0.00227369]
[1642626114288,1.74606606,3122.5,3122.1,0.00341054]
[1642626114485,1.74606606,3122.5,3122.1,0.03493329]
[1642626114884,1.74606606,3122.5,3122.2,0.00284212]
[1642626115085,1.74606606,3122.5,3122.2,0.03436377]
[1642626115489,1.74606606,3122.5,3122.3,0.03379419]
[1642626115892,1.74606606,3122.5,3122.4,0.03322463]
[1642626118039,2.40249,3123.2,3122.4,0.03322463]
[1642626118040,0.12970527,3123.0,3122.5,0.05018047]
[1642626118238,0.00170527,3123.0,3122.5,0.05018047]
[1642626118440,2.3022,3124.0,3122.5,0.05018047]
[1642626118441,0.00113685,3122.9,3122.7,0.09084137]
[1642626118641,0.00113685,3122.9,3122.7,3.46248125]
[1642626118838,0.13482108,3123.9,3122.8,8.32536013]
[1642626119039,1.8596605,3123.4,3122.9,2.72536013]
[1642626119439,0.00341054,3123.3,3122.9,2.72536013]
[1642626119639,0.00341054,3123.3,3122.7,4.09525129]
[1642626119839,0.00284212,3123.2,3122.8,2.72529858]
[1642626120242,0.00227369,3123.1,3122.8,2.72529858]
[1642626120642,0.00341054,3123.3,3122.8,2.72529858]
[1642626121043,2.27701138,3122.9,3122.8,2.72529858]
[1642626121243,2.27701138,3122.9,3122.7,1.0]
[1642626121511,2.27701138,3122.9,3122.6,0.03151706]
[1642626121512,2.27814823,3122.9,3122.6,0.03151706]
[1642626122297,3.07897823,3122.9,3122.6,0.03151706]
[1642626122497,2.27814823,3122.9,3122.6,0.03151706]
[1642626123502,5.26719527,3122.9,3122.6,0.03151706]
[1642626123708,1.72987,3122.8,3122.6,0.03151706]
[1642626123902,3.07292143,3122.7,3122.6,0.03151706]
[1642626124104,3.58592143,3122.7,3122.6,0.03151706]
[1642626124303,3.58592143,3122.7,3122.4,1.90170527]
[1642626124508,0.80115,3122.5,3122.4,1.90170527]
[1642626124709,0.80115,3122.5,3121.7,0.01]
[1642626124710,3.9,3122.4,3121.7,0.01]
[1642626124904,3.9,3122.4,3122.0,0.25]
[1642626124905,5.44042709,3122.3,3122.0,0.25]
[1642626125141,5.44042709,3122.3,3121.8,2.7264561]
[1642626125142,0.385,3122.2,3121.8,0.00511581]
[1642626125346,0.385,3122.2,3121.5,1.138]
[1642626125347,1.31125491,3121.8,3121.5,1.388]
[1642626125547,1.31125491,3121.8,3121.5,0.388]
[1642626125548,3.76885745,3121.7,3121.5,0.388]
[1642626125846,0.513,3121.7,3121.6,0.00113685]
[1642626126046,5.64655286,3121.7,3121.6,0.00113685]
[1642626126446,5.56155688,3121.7,3121.6,0.00113685]
[1642626126644,5.59878245,3121.7,3121.6,0.00113685]
[1642626127447,2.63572282,3121.7,3121.6,0.00113685]
[1642626127649,2.63572282,3121.7,3121.6,1.90113685]
[1642626128248,2.63572282,3121.7,3121.6,4.6277192]
[1642626128548,2.63572282,3121.7,3121.6,2.7277192]
[1642626128754,2.12272282,3121.7,3121.6,2.7277192]
[1642626131195,0.00170527,3122.1,3121.6,2.7277192]
[1642626131593,0.00113685,3122.0,3121.6,0.00113685]
[1642626131996,0.00227369,3122.2,3121.6,2.72741968]
[1642626132198,0.00227369,3122.2,3121.7,2.72628283]
[1642626132398,1.81248895,3121.9,3121.8,2.72628283]
[1642626132646,1.81248895,3121.9,3121.6,2.72741968]
[1642626132838,1.81248895,3121.9,3121.7,2.72628283]
[1642626133039,1.81248895,3121.9,3121.8,2.72628283]
[1642626133239,1.81248895,3121.9,3121.6,2.72741968]
[1642626133639,1.12142593,3121.8,3121.6,2.72741968]
[1642626134341,1.12142593,3121.8,3121.6,0.00113685]
[1642626134939,4.278,3121.7,3121.6,0.00113685]
[1642626135141,0.513,3121.7,3121.6,0.00113685]
[1642626135740,3.54428116,3121.7,3121.6,0.00113685]
[1642626136140,3.41628116,3121.7,3121.6,0.00113685]
[1642626138692,3.42227217,3121.7,3121.6,0.00113685]
[1642626140643,19.60136,3121.6,3121.5,0.01]
[1642626140839,1.31436,3121.6,3121.5,0.01]
[1642626141041,4.50957635,3121.6,3121.5,0.01]
[1642626141242,3.2,3121.5,3121.4,0.0001]
[1642626141443,3.96351443,3121.5,3121.4,0.0001]
[1642626141641,3.96351443,3121.5,3121.4,0.00123684]
[1642626142644,7.49154886,3121.5,3121.4,0.00123684]
[1642626143644,7.49752654,3121.5,3121.4,0.00123684]
[1642626144286,3.91901211,3121.5,3121.4,0.00123684]
[1642626144490,6.94937521,3121.5,3121.4,0.00123684]
[1642626144688,25.74937521,3121.5,3121.4,0.00113684]
[1642626144888,25.74937521,3121.5,3120.6,2.72719562]
[1642626144889,0.80136,3121.2,3120.7,2.72719562]
[1642626145090,3.01253972,3121.1,3120.8,2.72719562]
[1642626145292,3.01253972,3121.1,3120.9,2.72719562]
[1642626145494,3.01253972,3121.1,3120.8,0.00341054]
[1642626145694,3.01253972,3121.1,3121.0,0.0022737]
[1642626145894,3.01253972,3121.1,3120.5,2.72743186]
[1642626145895,1.48795752,3120.6,3120.5,2.73254768]
[1642626146094,4.45876212,3120.6,3120.5,2.72743186]
[1642626147939,2.9708046,3120.6,3120.5,2.72743186]
[1642626148640,2.97672227,3120.6,3120.5,2.72743186]
[1642626149041,2.97672227,3120.6,3120.4,0.25]
[1642626149042,4.62566866,3120.6,3120.4,0.25]
[1642626149642,0.01227555,3120.5,3120.2,0.75905519]
[1642626149840,0.385,3120.4,3120.2,0.75905519]
[1642626150038,0.385,3120.4,3120.3,0.00625266]
[1642626150443,1.26490182,3119.7,3119.4,0.01136847]
[1642626150647,1.66147568,3119.5,3119.4,0.01136847]
[1642626150845,1.26490182,3119.7,3119.6,2.69533786]
[1642626151046,2.93205235,3119.7,3119.6,2.69533786]
[1642626151245,2.93205235,3119.7,3119.6,2.70556949]
[1642626152389,3.73367235,3119.7,3119.6,2.70556949]
[1642626152689,4.11867235,3119.7,3119.6,2.70556949]
[1642626153291,3.31705235,3119.7,3119.6,2.70556949]
[1642626153792,3.32290997,3119.7,3119.6,2.70556949]
[1642626154193,2.85962815,3119.7,3119.6,2.70556949]
[1642626155339,4.11422965,3119.7,3119.6,2.70556949]
[1642626155939,7.34237038,3119.7,3119.6,2.70556949]
[1642626156339,7.06146693,3119.7,3119.6,2.70556949]
[1642626158343,6.67646693,3119.7,3119.6,2.70556949]
[1642626159489,6.80466693,3119.7,3119.6,2.70556949]
[1642626159893,6.67646693,3119.7,3119.6,2.70556949]
[1642626160293,6.67646693,3119.7,3118.5,3.64496189]
[1642626160294,4.50184,3119.6,3118.5,3.64496189]
[1642626160492,4.50184,3119.6,3118.5,0.01226189]
[1642626160493,0.8018279,3119.2,3118.5,0.01226189]
[1642626160705,0.8018279,3119.2,3118.6,0.00568423]
[1642626160706,6.62220129,3119.1,3118.6,0.00568423]
[1642626160893,3.61112527,3119.1,3118.6,0.00568423]
[1642626161291,3.73932527,3119.1,3118.6,0.00568423]
[1642626161491,3.73932527,3119.1,3118.4,0.00682108]
[1642626161691,0.80185,3119.0,3118.4,0.00682108]
[1642626161893,0.80207,3118.8,3118.4,0.00682108]
[1642626162092,0.385,3118.7,3118.4,0.00682108]
[1642626162965,0.385,3118.7,3118.1,0.75958572]
[1642626162966,6.15143026,3118.6,3118.1,0.75958572]
[1642626163163,1.98175472,3118.5,3118.1,8.572e-05]
[1642626163358,1.98175472,3118.5,3117.6,1.0]
[1642626163359,5.6,3118.3,3117.6,1.0]
[1642626163562,4.53298413,3118.2,3116.8,0.4089538]
[1642626163763,4.53298413,3118.2,3117.7,0.00284212]
[1642626163764,18.8,3118.1,3117.7,0.00284212]
[1642626163961,18.8,3118.1,3116.8,0.4089538]
[1642626163962,5.6,3117.9,3116.8,0.4089538]
[1642626164162,5.79756882,3118.0,3116.8,0.3589538]
[1642626164163,1.11554273,3116.9,3116.8,0.3589538]
[1642626164363,2.01814273,3116.9,3116.8,0.34679347]
[1642626164663,2.01814273,3116.9,3116.8,0.35190928]
[1642626165065,4.98713538,3116.9,3116.8,0.35190928]
[1642626166898,5.37213538,3116.9,3116.8,0.35190928]
[1642626167097,0.385,3116.9,3116.8,0.35190928]
[1642626169504,0.385,3116.9,3116.0,0.01294645]
[1642626169703,2.4076718,3116.7,3116.1,2.73069045]
[1642626169903,0.385,3116.6,3116.1,2.73466942]
[1642626170154,0.385,3116.6,3116.2,2.73069045]
[1642626170352,1.09923851,3116.5,3116.2,2.73069045]
[1642626170552,2.24862863,3116.4,3116.3,0.00284212]
[1642626170750,2.63362863,3116.4,3116.3,0.00284212]
[1642626170946,2.63362863,3116.4,3115.9,2.73596554]
[1642626170947,3.43626863,3116.4,3115.9,2.73596554]
[1642626171148,3.43626863,3116.4,3116.0,2.73539712]
[1642626171350,3.43626863,3116.4,3116.1,2.73084973]
[1642626171749,3.43626863,3116.4,3116.2,0.00341054]
[1642626172148,3.43626863,3116.4,3115.6,2.73763203]
[1642626172450,2.498,3117.1,3116.4,5.44029726]
[1642626172650,0.385,3117.0,3116.5,2.77353096]
[1642626172851,0.38613684,3117.0,3116.6,2.73047016]
[1642626173152,0.38613684,3117.0,3116.6,0.00113685]
[1642626173348,1.60499,3116.9,3116.6,0.00113685]
[1642626173648,1.60499,3116.9,3116.5,0.00170527]
[1642626173649,1.65218106,3116.7,3116.5,0.00170527]
[1642626173892,0.80254,3116.6,3116.5,0.00170527]
[1642626174498,1.65218106,3116.7,3116.5,0.00170527]
[1642626174699,1.65218106,3116.7,3116.5,2.73222942]
[1642626174897,1.65218106,3116.7,3116.5,0.00170527]
[1642626174898,0.80249,3116.6,3116.5,0.00170527]
[1642626175097,0.80249,3116.6,3116.4,5.44029726]
[1642626175505,0.385,3116.8,3116.5,0.01272912]
[1642626175707,0.00113684,3117.0,3116.5,0.01272912]
[1642626175904,0.00113684,3117.0,3116.6,2.7313329]
[1642626176600,2.06957017,3117.0,3116.6,2.7313329]
[1642626180448,0.00113684,3117.0,3116.6,2.7313329]
[1642626180651,0.00113684,3117.0,3116.6,0.00113685]
[1642626181049,0.00113684,3117.0,3116.9,0.01238219]
[1642626181251,0.00113684,3117.0,3116.9,5.61238219]
[1642626181499,0.00113684,3117.0,3116.9,3.74279464]
[1642626182200,2.4364,3118.0,3117.4,2.43435859]
[1642626182201,2.06625456,3117.7,3117.4,2.43435859]
[1642626183205,2.33091877,3117.6,3117.4,2.43435859]
[1642626183402,3.2783,3117.5,3117.4,2.43435859]
[1642626183604,0.13114212,3117.5,3117.4,2.43435859]
[1642626184700,0.13114212,3117.5,3116.6,0.00113685]
[1642626184701,0.8024,3117.3,3116.6,0.00113685]
[1642626184903,1.22003565,3116.7,3116.6,0.00113685]
[1642626185170,1.22003565,3116.7,3116.6,0.00227369]
[1642626185569,3.42296269,3116.7,3116.6,0.00227369]
[1642626186066,2.20292704,3116.7,3116.5,0.00284211]
[1642626189499,2.20292704,3116.7,3116.5,2.73309573]
[1642626189701,2.20292704,3116.7,3116.5,0.00284211]
[1642626189899,2.20292704,3116.7,3116.6,0.00227369]
[1642626190098,2.20292704,3116.7,3116.5,0.00284211]
[1642626191501,2.20292704,3116.7,3116.5,2.7330243]
[1642626191903,2.20292704,3116.7,3116.6,0.00227369]
[1642626192746,2.20292704,3116.7,3116.5,2.73307619]
[1642626192948,2.20292704,3116.7,3116.6,0.00227369]
[1642626193750,2.33122704,3116.7,3116.6,0.00227369]
[1642626193948,2.33122704,3116.7,3116.5,0.00284211]
[1642626194151,0.1283,3116.6,3116.5,0.00284211]
[1642626195352,0.1283,3116.6,3116.5,2.73324873]
[1642626196598,2.33122704,3116.7,3116.5,2.73324873]
[1642626196999,2.33122704,3116.7,3116.6,0.00227369]
[1642626197401,0.00113685,3117.2,3116.7,4.36846541]
[1642626197402,0.1283,3117.1,3116.7,4.36846541]
[1642626197603,0.00113685,3117.2,3116.8,0.04191412]
[1642626197802,0.00113685,3117.2,3116.9,2.73040662]
[1642626198203,0.00113685,3117.2,3117.0,2.74453407]
[1642626198402,0.00113685,3117.2,3116.8,0.00113684]
[1642626198603,1.81952305,3117.2,3116.8,2.73124054]
[1642626199204,1.10330765,3117.0,3116.8,2.73124054]
[1642626202051,1.81952305,3117.2,3116.8,2.73124054]
[1642626202251,1.81952305,3117.2,3116.8,5.7024281]
[1642626202451,1.81952305,3117.2,3116.9,2.7301037]
[1642626202650,1.81952305,3117.2,3117.0,2.7301037]